{"text_format":"1","workbook":"xlsx","n_sheets":4,"sheets":["база","сводная","результат","Лист3"],"not_rendered":{"charts":0,"images":0,"macros":1,"external_links":0,"defined_names":3,"comments":0,"pivot_tables":2},"unopened":[],"bounds":{"document_bytes":16777216,"sheet_cells":100000,"rows_first":2000,"rows_last":500,"rows_between":2000,"halvings":0,"cell_chars":16384,"cell_head_chars":4096},"cells_cut":0,"cells_raw":0,"read":"whole","date_system":"1900"}

{"sheet":"база","index":0,"n_rows":6,"n_cols":8,"rows_kept":6,"cut":false,"hidden":false,"merged":[]}
["№ д","Статус","Дата","Коммент.","Столбец1","Столбец2",null,"заголовки"]
["08-00031/10","Сл/з погашение ЕГРП","2015-09-09","от 09.09.2015 Автор: (Бондарев М.А.)",{"$f":"\"редакция \"&COUNTIF($A$1:A2,A2)","v":"редакция 1"},{"$f":"ROW()-1","v":1},null,"Статус"]
["06-01135/07","не готов","2015-09-09","06-01135",{"$f":"\"редакция \"&COUNTIF($A$1:A3,A3)","v":"редакция 1"},{"$f":"ROW()-1","v":2},null,"Дата"]
["08-00031/10","Сл/з погашение ЕГРП","2015-09-10","от 09.09.2015 Автор: (Бондарев М.А.)",{"$f":"\"редакция \"&COUNTIF($A$1:A4,A4)","v":"редакция 2"},{"$f":"ROW()-1","v":3},null,"Коммент."]
["08-00031/10","Сл/з погашение ЕГРП","2015-09-11","от 09.09.2015 Автор: (Бондарев М.А.)",{"$f":"\"редакция \"&COUNTIF($A$1:A5,A5)","v":"редакция 3"},{"$f":"ROW()-1","v":4}]
["06-01135/07","готов","2015-09-12","06-01135/07",{"$f":"\"редакция \"&COUNTIF($A$1:A6,A6)","v":"редакция 2"},{"$f":"ROW()-1","v":5}]

{"sheet":"сводная","index":1,"n_rows":6,"n_cols":4,"rows_kept":6,"cut":false,"hidden":false,"merged":[]}
[]
[]
["Сумма по полю Столбец2","Столбец1"]
["№ д","редакция 1","редакция 2","редакция 3"]
["06-01135/07",2,5]
["08-00031/10",1,3,4]

{"sheet":"результат","index":2,"n_rows":7,"n_cols":12,"rows_kept":7,"cut":false,"hidden":false,"merged":[[2,2,2,4],[2,5,2,7],[2,8,2,10]]}
[]
[null,null,"Редакция","Заголовки"]
[null,"номер","редакция 1",null,null,"редакция 2",null,null,"редакция 3"]
[null,"договора","Статус","Дата","Коммент.","Статус","Дата","Коммент.","Статус","Дата","Коммент."]
[null,"№ д","1","2","3","4","5","6","7","8","9"]
[null,"06-01135/07",{"$f":"IFERROR(INDEX(столбец,SUM(GETPIVOTDATA(\"Столбец2\",сводная!$A$3,\"№ д\",Таблица_ExternalData_1[[#This Row],[№ д]:[№ д]],\"Столбец1\",LOOKUP(\"яяя\",$B$3:C$3))^{0;1})-1),\"\")","v":"не готов"},{"$f":"IFERROR(INDEX(столбец,SUM(GETPIVOTDATA(\"Столбец2\",сводная!$A$3,\"№ д\",Таблица_ExternalData_1[[#This Row],[№ д]:[№ д]],\"Столбец1\",LOOKUP(\"яяя\",$B$3:D$3))^{0;1})-1),\"\")","v":42256},{"$f":"IFERROR(INDEX(столбец,SUM(GETPIVOTDATA(\"Столбец2\",сводная!$A$3,\"№ д\",Таблица_ExternalData_1[[#This Row],[№ д]:[№ д]],\"Столбец1\",LOOKUP(\"яяя\",$B$3:E$3))^{0;1})-1),\"\")","v":"06-01135"},{"$f":"IFERROR(INDEX(столбец,SUM(GETPIVOTDATA(\"Столбец2\",сводная!$A$3,\"№ д\",Таблица_ExternalData_1[[#This Row],[№ д]:[№ д]],\"Столбец1\",LOOKUP(\"яяя\",$B$3:F$3))^{0;1})-1),\"\")","v":"готов"},{"$f":"IFERROR(INDEX(столбец,SUM(GETPIVOTDATA(\"Столбец2\",сводная!$A$3,\"№ д\",Таблица_ExternalData_1[[#This Row],[№ д]:[№ д]],\"Столбец1\",LOOKUP(\"яяя\",$B$3:G$3))^{0;1})-1),\"\")","v":42259},{"$f":"IFERROR(INDEX(столбец,SUM(GETPIVOTDATA(\"Столбец2\",сводная!$A$3,\"№ д\",Таблица_ExternalData_1[[#This Row],[№ д]:[№ д]],\"Столбец1\",LOOKUP(\"яяя\",$B$3:H$3))^{0;1})-1),\"\")","v":"06-01135/07"},{"$f":"IFERROR(INDEX(столбец,SUM(GETPIVOTDATA(\"Столбец2\",сводная!$A$3,\"№ д\",Таблица_ExternalData_1[[#This Row],[№ д]:[№ д]],\"Столбец1\",LOOKUP(\"яяя\",$B$3:I$3))^{0;1})-1),\"\")","v":""},{"$f":"IFERROR(INDEX(столбец,SUM(GETPIVOTDATA(\"Столбец2\",сводная!$A$3,\"№ д\",Таблица_ExternalData_1[[#This Row],[№ д]:[№ д]],\"Столбец1\",LOOKUP(\"яяя\",$B$3:J$3))^{0;1})-1),\"\")","v":""},{"$f":"IFERROR(INDEX(столбец,SUM(GETPIVOTDATA(\"Столбец2\",сводная!$A$3,\"№ д\",Таблица_ExternalData_1[[#This Row],[№ д]:[№ д]],\"Столбец1\",LOOKUP(\"яяя\",$B$3:K$3))^{0;1})-1),\"\")","v":""},{"$f":"IFERROR(INDEX(столбец,SUM(GETPIVOTDATA(\"Столбец2\",сводная!$A$3,\"№ д\",Таблица_ExternalData_1[[#This Row],[№ д]:[№ д]],\"Столбец1\",LOOKUP(\"яяя\",$B$3:L$3))^{0;1})-1),\"\")","v":""}]
[null,"08-00031/10",{"$f":"IFERROR(INDEX(столбец,SUM(GETPIVOTDATA(\"Столбец2\",сводная!$A$3,\"№ д\",Таблица_ExternalData_1[[#This Row],[№ д]:[№ д]],\"Столбец1\",LOOKUP(\"яяя\",$B$3:C$3))^{0;1})-1),\"\")","v":"Сл/з погашение ЕГРП"},{"$f":"IFERROR(INDEX(столбец,SUM(GETPIVOTDATA(\"Столбец2\",сводная!$A$3,\"№ д\",Таблица_ExternalData_1[[#This Row],[№ д]:[№ д]],\"Столбец1\",LOOKUP(\"яяя\",$B$3:D$3))^{0;1})-1),\"\")","v":42256},{"$f":"IFERROR(INDEX(столбец,SUM(GETPIVOTDATA(\"Столбец2\",сводная!$A$3,\"№ д\",Таблица_ExternalData_1[[#This Row],[№ д]:[№ д]],\"Столбец1\",LOOKUP(\"яяя\",$B$3:E$3))^{0;1})-1),\"\")","v":"от 09.09.2015 Автор: (Бондарев М.А.)"},{"$f":"IFERROR(INDEX(столбец,SUM(GETPIVOTDATA(\"Столбец2\",сводная!$A$3,\"№ д\",Таблица_ExternalData_1[[#This Row],[№ д]:[№ д]],\"Столбец1\",LOOKUP(\"яяя\",$B$3:F$3))^{0;1})-1),\"\")","v":"Сл/з погашение ЕГРП"},{"$f":"IFERROR(INDEX(столбец,SUM(GETPIVOTDATA(\"Столбец2\",сводная!$A$3,\"№ д\",Таблица_ExternalData_1[[#This Row],[№ д]:[№ д]],\"Столбец1\",LOOKUP(\"яяя\",$B$3:G$3))^{0;1})-1),\"\")","v":42257},{"$f":"IFERROR(INDEX(столбец,SUM(GETPIVOTDATA(\"Столбец2\",сводная!$A$3,\"№ д\",Таблица_ExternalData_1[[#This Row],[№ д]:[№ д]],\"Столбец1\",LOOKUP(\"яяя\",$B$3:H$3))^{0;1})-1),\"\")","v":"от 09.09.2015 Автор: (Бондарев М.А.)"},{"$f":"IFERROR(INDEX(столбец,SUM(GETPIVOTDATA(\"Столбец2\",сводная!$A$3,\"№ д\",Таблица_ExternalData_1[[#This Row],[№ д]:[№ д]],\"Столбец1\",LOOKUP(\"яяя\",$B$3:I$3))^{0;1})-1),\"\")","v":"Сл/з погашение ЕГРП"},{"$f":"IFERROR(INDEX(столбец,SUM(GETPIVOTDATA(\"Столбец2\",сводная!$A$3,\"№ д\",Таблица_ExternalData_1[[#This Row],[№ д]:[№ д]],\"Столбец1\",LOOKUP(\"яяя\",$B$3:J$3))^{0;1})-1),\"\")","v":42258},{"$f":"IFERROR(INDEX(столбец,SUM(GETPIVOTDATA(\"Столбец2\",сводная!$A$3,\"№ д\",Таблица_ExternalData_1[[#This Row],[№ д]:[№ д]],\"Столбец1\",LOOKUP(\"яяя\",$B$3:K$3))^{0;1})-1),\"\")","v":"от 09.09.2015 Автор: (Бондарев М.А.)"},{"$f":"IFERROR(INDEX(столбец,SUM(GETPIVOTDATA(\"Столбец2\",сводная!$A$3,\"№ д\",Таблица_ExternalData_1[[#This Row],[№ д]:[№ д]],\"Столбец1\",LOOKUP(\"яяя\",$B$3:L$3))^{0;1})-1),\"\")","v":""}]

{"sheet":"Лист3","index":3,"n_rows":2,"n_cols":1,"rows_kept":2,"cut":false,"hidden":false,"merged":[]}
[]
[{"$f":"LARGE((база!$A$2:$A$6=результат!#REF!)*ROW(база!C1:C5),COLUMN(результат!#REF!)-1)","v":{"$error":"#REF!"}}]